[Event "Early-Titled-Tuesday-Blitz-January-16-2024"]
[Site "Chess.com"]
[Date "2024.01.16"]
[Round "5"]
[White "stasOR4ik"]
[Black "Chiquitita23"]
[Result "1-0"]
[WhiteElo "2408"]
[BlackElo "2166"]
[TimeControl "180+1"]
[EndTime "8:59:00 PST"]
[Termination "stasOR4ik won on time"]

1. e4 {[%clk 0:03:00.9]} 1... e5 {[%clk 0:02:57.6]} 2. Bc4 {[%clk 0:03:00.3]}
2... Bc5 {[%clk 0:02:56.4]} 3. Nf3 {[%clk 0:03:00.6]} 3... Nc6 {[%clk
0:02:55.6]} 4. O-O {[%clk 0:02:57]} 4... Nf6 {[%clk 0:02:54.8]} 5. c3 {[%clk
0:02:50.6]} 5... d6 {[%clk 0:02:54.7]} 6. d4 {[%clk 0:02:50.8]} 6... Bb6 {[%clk
0:02:54.3]} 7. dxe5 {[%clk 0:02:50.1]} 7... Nxe5 {[%clk 0:02:46.4]} 8. Nxe5
{[%clk 0:02:49.7]} 8... dxe5 {[%clk 0:02:46.6]} 9. Qxd8+ {[%clk 0:02:49.5]} 9...
Kxd8 {[%clk 0:02:46.8]} 10. Bg5 {[%clk 0:02:48.3]} 10... Ke7 {[%clk 0:02:42.7]}
11. a4 {[%clk 0:02:45.5]} 11... a6 {[%clk 0:02:39.4]} 12. Na3 {[%clk 0:02:38.5]}
12... Be6 {[%clk 0:02:38.3]} 13. Rfd1 {[%clk 0:02:35.1]} 13... h6 {[%clk
0:02:37.2]} 14. Bxf6+ {[%clk 0:02:35.1]} 14... gxf6 {[%clk 0:02:37.1]} 15. Kf1
{[%clk 0:02:34.4]} 15... h5 {[%clk 0:02:32.6]} 16. f3 {[%clk 0:02:32.3]} 16...
h4 {[%clk 0:02:31.6]} 17. h3 {[%clk 0:02:32.8]} 17... Rhg8 {[%clk 0:02:29.8]}
18. Bxe6 {[%clk 0:02:24.7]} 18... fxe6 {[%clk 0:02:27.7]} 19. Rd2 {[%clk
0:02:24.2]} 19... Be3 {[%clk 0:02:17.8]} 20. Rd3 {[%clk 0:02:22.4]} 20... Bf4
{[%clk 0:02:16.2]} 21. Rad1 {[%clk 0:02:21.1]} 21... Rad8 {[%clk 0:02:14.6]} 22.
Nc4 {[%clk 0:01:54.4]} 22... b6 {[%clk 0:01:46.8]} 23. Rxd8 {[%clk 0:01:29.9]}
23... Rxd8 {[%clk 0:01:45.1]} 24. Rxd8 {[%clk 0:01:30.3]} 24... Kxd8 {[%clk
0:01:44.6]} 25. Ke2 {[%clk 0:01:29.6]} 25... Kd7 {[%clk 0:01:39.6]} 26. Kd3
{[%clk 0:01:22]} 26... Kc6 {[%clk 0:01:34.1]} 27. b3 {[%clk 0:01:22]} 27... b5
{[%clk 0:01:08.1]} 28. axb5+ {[%clk 0:01:22]} 28... axb5 {[%clk 0:01:08]} 29.
Na5+ {[%clk 0:01:17]} 29... Kb6 {[%clk 0:01:08]} 30. b4 {[%clk 0:01:17.1]} 30...
c5 {[%clk 0:01:07.8]} 31. Kc2 {[%clk 0:00:55.2]} 31... c4 {[%clk 0:00:33]} 32.
Kd1 {[%clk 0:00:47.5]} 32... f5 {[%clk 0:00:27.2]} 33. Ke2 {[%clk 0:00:46]}
33... Bc1 {[%clk 0:00:18.2]} 34. Kd1 {[%clk 0:00:44.5]} 34... Be3 {[%clk
0:00:13.9]} 35. Ke2 {[%clk 0:00:44]} 35... Bg1 {[%clk 0:00:13.8]} 36. Kf1 {[%clk
0:00:43.3]} 36... Be3 {[%clk 0:00:13.5]} 37. Ke2 {[%clk 0:00:43.7]} 37... Bg5
{[%clk 0:00:12.8]} 38. Kd1 {[%clk 0:00:39.8]} 38... Be7 {[%clk 0:00:11.7]} 39.
Ke2 {[%clk 0:00:37.6]} 39... Kc7 {[%clk 0:00:09]} 40. Ke3 {[%clk 0:00:20.6]}
40... f4+ {[%clk 0:00:05.8]} 41. Ke2 {[%clk 0:00:20.3]} 41... Bd6 {[%clk
0:00:05.4]} 42. Kd2 {[%clk 0:00:19.9]} 42... Kb6 {[%clk 0:00:05.7]} 43. Kc2
{[%clk 0:00:19.3]} 43... Bb8 {[%clk 0:00:05.8]} 44. Kd2 {[%clk 0:00:18.6]} 44...
Kc7 {[%clk 0:00:05.7]} 45. Kc2 {[%clk 0:00:18.2]} 45... Ba7 {[%clk 0:00:06]} 46.
Kb2 {[%clk 0:00:18.3]} 46... Bb6 {[%clk 0:00:06.4]} 47. Ka2 {[%clk 0:00:12.6]}
47... Bxa5 {[%clk 0:00:05.5]} 48. bxa5 {[%clk 0:00:12.9]} 48... Kb7 {[%clk
0:00:03.5]} 49. Ka3 {[%clk 0:00:10.7]} 1-0

[Event "Early-Titled-Tuesday-Blitz-January-16-2024"]
[Site "Chess.com"]
[Date "2024.01.16"]
[Round "5"]
[White "ClayK1ng"]
[Black "agvega14"]
[Result "1-0"]
[WhiteElo "2296"]
[BlackElo "2130"]
[TimeControl "180+1"]
[EndTime "8:59:02 PST"]
[Termination "ClayK1ng won on time"]

1. Nc3 {[%clk 0:02:55.5]} 1... Nf6 {[%clk 0:02:57.7]} 2. Nf3 {[%clk 0:02:52.2]}
2... Nc6 {[%clk 0:02:57]} 3. Nb1 {[%clk 0:02:49]} 3... d5 {[%clk 0:02:56.3]} 4.
d4 {[%clk 0:02:39.8]} 4... g6 {[%clk 0:02:51.7]} 5. e3 {[%clk 0:02:36.5]} 5...
Bg7 {[%clk 0:02:51.4]} 6. a3 {[%clk 0:02:35.8]} 6... O-O {[%clk 0:02:51.4]} 7.
Bd3 {[%clk 0:02:36.3]} 7... Bg4 {[%clk 0:02:48.2]} 8. h3 {[%clk 0:02:31.8]} 8...
Bxf3 {[%clk 0:02:48]} 9. Qxf3 {[%clk 0:02:32.7]} 9... e5 {[%clk 0:02:48]} 10.
dxe5 {[%clk 0:02:29.9]} 10... Nxe5 {[%clk 0:02:48.9]} 11. Qe2 {[%clk 0:02:30.4]}
11... Nxd3+ {[%clk 0:02:48.4]} 12. Qxd3 {[%clk 0:02:31.3]} 12... Re8 {[%clk
0:02:45.7]} 13. O-O {[%clk 0:02:31.4]} 13... Ne4 {[%clk 0:02:42.3]} 14. Nd2
{[%clk 0:02:26.4]} 14... Nc5 {[%clk 0:02:19.7]} 15. Qb5 {[%clk 0:02:13.3]} 15...
b6 {[%clk 0:02:00.3]} 16. Rb1 {[%clk 0:02:07.7]} 16... Qd6 {[%clk 0:01:57.3]}
17. b4 {[%clk 0:02:02.2]} 17... Ne6 {[%clk 0:01:51.9]} 18. Nb3 {[%clk 0:01:57]}
18... c6 {[%clk 0:01:49.6]} 19. Qd3 {[%clk 0:01:56.1]} 19... Rad8 {[%clk
0:01:45.2]} 20. Bb2 {[%clk 0:01:54.8]} 20... Bxb2 {[%clk 0:01:42.1]} 21. Rxb2
{[%clk 0:01:55.7]} 21... Qe5 {[%clk 0:01:39.3]} 22. c3 {[%clk 0:01:51]} 22... f5
{[%clk 0:01:32.5]} 23. Nd4 {[%clk 0:01:48]} 23... Qd6 {[%clk 0:01:24.7]} 24. Rd1
{[%clk 0:01:39.6]} 24... b5 {[%clk 0:00:54.1]} 25. Nxe6 {[%clk 0:01:33.2]} 25...
Rxe6 {[%clk 0:00:53.1]} 26. Rbd2 {[%clk 0:01:33.3]} 26... Qe5 {[%clk 0:00:45.9]}
27. Qd4 {[%clk 0:01:31.3]} 27... Rd7 {[%clk 0:00:41.2]} 28. Qxe5 {[%clk
0:01:18]} 28... Rxe5 {[%clk 0:00:41.3]} 29. a4 {[%clk 0:01:17.9]} 29... a6
{[%clk 0:00:37.2]} 30. Ra1 {[%clk 0:01:18]} 30... Ree7 {[%clk 0:00:31.3]} 31.
axb5 {[%clk 0:01:07.8]} 31... axb5 {[%clk 0:00:32.2]} 32. Ra6 {[%clk 0:01:08]}
32... Rc7 {[%clk 0:00:32.1]} 33. Rda2 {[%clk 0:01:08.9]} 33... Kf7 {[%clk
0:00:31.3]} 34. Kf1 {[%clk 0:01:07.8]} 34... Ke6 {[%clk 0:00:23.8]} 35. Rb6
{[%clk 0:01:07.8]} 35... Kd6 {[%clk 0:00:24.2]} 36. Ra5 {[%clk 0:01:04]} 36...
Kd7 {[%clk 0:00:19]} 37. Ke2 {[%clk 0:01:04.1]} 37... f4 {[%clk 0:00:18.3]} 38.
Kd3 {[%clk 0:00:58.7]} 38... fxe3 {[%clk 0:00:18.3]} 39. fxe3 {[%clk 0:00:59.6]}
39... Re4 {[%clk 0:00:18.4]} 40. Ra8 {[%clk 0:00:51.1]} 40... Re8 {[%clk
0:00:14.9]} 41. Rxe8 {[%clk 0:00:47.3]} 41... Kxe8 {[%clk 0:00:15.8]} 42. Kd4
{[%clk 0:00:47.6]} 42... Kd7 {[%clk 0:00:15.9]} 43. Kc5 {[%clk 0:00:47]} 43...
h6 {[%clk 0:00:15.2]} 44. Ra6 {[%clk 0:00:44.7]} 44... h5 {[%clk 0:00:13]} 45.
Ra8 {[%clk 0:00:43.7]} 45... Ke6 {[%clk 0:00:13]} 46. Rg8 {[%clk 0:00:37.6]}
46... Kf7 {[%clk 0:00:11.3]} 47. Rh8 {[%clk 0:00:34.9]} 47... Kg7 {[%clk
0:00:10.6]} 48. Rd8 {[%clk 0:00:34.4]} 48... Re7 {[%clk 0:00:10.2]} 49. Kxc6
{[%clk 0:00:30.7]} 49... Rxe3 {[%clk 0:00:09.7]} 50. Rxd5 {[%clk 0:00:30.8]}
50... Rxc3+ {[%clk 0:00:09.5]} 51. Kxb5 {[%clk 0:00:31]} 51... Rc2 {[%clk
0:00:08.5]} 52. Rg5 {[%clk 0:00:21.2]} 52... Kf6 {[%clk 0:00:08.1]} 53. h4
{[%clk 0:00:21.2]} 53... Rb2 {[%clk 0:00:02.6]} 54. g3 {[%clk 0:00:21.5]} 54...
Rb3 {[%clk 0:00:01.8]} 55. Kc5 {[%clk 0:00:21.1]} 1-0

[Event "Early-Titled-Tuesday-Blitz-January-16-2024"]
[Site "Chess.com"]
[Date "2024.01.16"]
[Round "5"]
[White "tteshan"]
[Black "MIss_MIaMI"]
[Result "1-0"]
[WhiteElo "2596"]
[BlackElo "2418"]
[TimeControl "180+1"]
[EndTime "8:59:03 PST"]
[Termination "tteshan won by checkmate"]

1. d4 {[%clk 0:02:56.9]} 1... c5 {[%clk 0:03:00.4]} 2. d5 {[%clk 0:02:55.2]}
2... g6 {[%clk 0:03:00.9]} 3. c4 {[%clk 0:02:55.2]} 3... Bg7 {[%clk 0:03:01.3]}
4. Nc3 {[%clk 0:02:55.9]} 4... Bxc3+ {[%clk 0:03:01.9]} 5. bxc3 {[%clk
0:02:56.8]} 5... Qa5 {[%clk 0:03:02.5]} 6. Qc2 {[%clk 0:02:55.6]} 6... f5 {[%clk
0:03:02.8]} 7. e4 {[%clk 0:02:55.4]} 7... fxe4 {[%clk 0:03:03.5]} 8. Ne2 {[%clk
0:02:55.6]} 8... e3 {[%clk 0:03:04]} 9. Bxe3 {[%clk 0:02:55.1]} 9... Nf6 {[%clk
0:03:03.1]} 10. Nc1 {[%clk 0:02:53.6]} 10... d6 {[%clk 0:02:59.3]} 11. Bd3
{[%clk 0:02:52.5]} 11... Nbd7 {[%clk 0:02:54.8]} 12. Nb3 {[%clk 0:02:48.4]}
12... Qa6 {[%clk 0:02:51.9]} 13. Nd2 {[%clk 0:02:37.1]} 13... Ne5 {[%clk
0:02:47.2]} 14. Be2 {[%clk 0:02:37.3]} 14... Bf5 {[%clk 0:02:40.9]} 15. Qb3
{[%clk 0:02:35.8]} 15... Nd3+ {[%clk 0:02:37.5]} 16. Kf1 {[%clk 0:02:34.5]}
16... Ne5 {[%clk 0:01:59.8]} 17. f3 {[%clk 0:02:29.5]} 17... O-O {[%clk
0:01:42.3]} 18. h3 {[%clk 0:02:16.9]} 18... Bd7 {[%clk 0:01:38.1]} 19. Kg1
{[%clk 0:02:10.2]} 19... Nxd5 {[%clk 0:01:32]} 20. Bh6 {[%clk 0:01:52.1]} 20...
Rf7 {[%clk 0:01:14.5]} 21. cxd5 {[%clk 0:01:38.8]} 21... Qxe2 {[%clk 0:01:15.4]}
22. Qxb7 {[%clk 0:01:38.9]} 22... Re8 {[%clk 0:01:01.2]} 23. Qb1 {[%clk
0:01:31.9]} 23... Bf5 {[%clk 0:00:59.6]} 24. Qe1 {[%clk 0:01:27.7]} 24... Qd3
{[%clk 0:00:55.8]} 25. Qe3 {[%clk 0:01:09.7]} 25... Qxd5 {[%clk 0:00:55.3]} 26.
Kh2 {[%clk 0:01:03.6]} 26... Nc4 {[%clk 0:00:40.1]} 27. Nxc4 {[%clk 0:01:02.9]}
27... Qxc4 {[%clk 0:00:41]} 28. Rhe1 {[%clk 0:01:01.6]} 28... e5 {[%clk
0:00:40.1]} 29. Rad1 {[%clk 0:00:56.5]} 29... Rd7 {[%clk 0:00:35.2]} 30. Qg5
{[%clk 0:00:43.1]} 30... Qxa2 {[%clk 0:00:22]} 31. Ra1 {[%clk 0:00:37.3]} 31...
Qf7 {[%clk 0:00:21.6]} 32. f4 {[%clk 0:00:32]} 32... Qe7 {[%clk 0:00:12.4]} 33.
Qg3 {[%clk 0:00:26.8]} 33... e4 {[%clk 0:00:12.2]} 34. Bg5 {[%clk 0:00:25.7]}
34... Qf7 {[%clk 0:00:12.8]} 35. h4 {[%clk 0:00:21.2]} 35... d5 {[%clk
0:00:13.1]} 36. h5 {[%clk 0:00:21.2]} 36... d4 {[%clk 0:00:13.7]} 37. cxd4
{[%clk 0:00:20.5]} 37... cxd4 {[%clk 0:00:14.6]} 38. h6 {[%clk 0:00:17.5]} 38...
e3 {[%clk 0:00:13.2]} 39. Ra6 {[%clk 0:00:13.7]} 39... Re6 {[%clk 0:00:11.8]}
40. Rxe6 {[%clk 0:00:12.2]} 40... Qxe6 {[%clk 0:00:12.7]} 41. Rc1 {[%clk
0:00:11.2]} 41... Kf7 {[%clk 0:00:12.9]} 42. Rc8 {[%clk 0:00:08.8]} 42... e2
{[%clk 0:00:03.8]} 43. Qe1 {[%clk 0:00:08.9]} 43... d3 {[%clk 0:00:03.8]} 44.
Rh8 {[%clk 0:00:05.8]} 44... d2 {[%clk 0:00:04.4]} 45. Qa1 {[%clk 0:00:05.3]}
45... e1=Q {[%clk 0:00:01.6]} 46. Qg7# {[%clk 0:00:05.6]} 1-0

[Event "Early-Titled-Tuesday-Blitz-January-16-2024"]
[Site "Chess.com"]
[Date "2024.01.16"]
[Round "5"]
[White "WhiteKnight2612"]
[Black "FairChess_on_YouTube"]
[Result "0-1"]
[WhiteElo "2873"]
[BlackElo "3088"]
[TimeControl "180+1"]
[EndTime "8:59:04 PST"]
[Termination "FairChess_on_YouTube won by resignation"]

1. Nf3 {[%clk 0:03:00.9]} 1... b5 {[%clk 0:02:58.6]} 2. e4 {[%clk 0:02:56.8]}
2... Bb7 {[%clk 0:02:58.9]} 3. Bxb5 {[%clk 0:02:47.6]} 3... Bxe4 {[%clk
0:02:59]} 4. O-O {[%clk 0:02:48.1]} 4... c6 {[%clk 0:02:59.3]} 5. Ba4 {[%clk
0:02:47.7]} 5... Qa5 {[%clk 0:02:58.9]} 6. Nc3 {[%clk 0:02:45.5]} 6... Bxf3
{[%clk 0:02:58.1]} 7. Qxf3 {[%clk 0:02:45.2]} 7... Nf6 {[%clk 0:02:58.7]} 8. d4
{[%clk 0:02:44.1]} 8... e6 {[%clk 0:02:57.5]} 9. Bf4 {[%clk 0:02:43.9]} 9... Be7
{[%clk 0:02:51.6]} 10. Bb3 {[%clk 0:02:41.3]} 10... d5 {[%clk 0:02:49.4]} 11.
Qg3 {[%clk 0:02:25.9]} 11... Nh5 {[%clk 0:02:37.8]} 12. Qg4 {[%clk 0:02:23.7]}
12... Nxf4 {[%clk 0:02:37.7]} 13. Qxf4 {[%clk 0:02:24.6]} 13... O-O {[%clk
0:02:35.9]} 14. Ne2 {[%clk 0:02:23.5]} 14... Nd7 {[%clk 0:02:34.6]} 15. c3
{[%clk 0:02:23.5]} 15... Rfb8 {[%clk 0:02:31.9]} 16. Rfe1 {[%clk 0:02:17]} 16...
Qb6 {[%clk 0:02:29.3]} 17. Ng3 {[%clk 0:02:15.4]} 17... a5 {[%clk 0:02:14.2]}
18. Ba4 {[%clk 0:02:09.1]} 18... Bf8 {[%clk 0:02:04.8]} 19. Re2 {[%clk
0:02:08.6]} 19... Nf6 {[%clk 0:02:03.8]} 20. Rae1 {[%clk 0:02:07]} 20... c5
{[%clk 0:02:03.6]} 21. dxc5 {[%clk 0:01:57.6]} 21... Qxc5 {[%clk 0:02:04.5]} 22.
h4 {[%clk 0:01:55.3]} 22... Bd6 {[%clk 0:01:59.6]} 23. Qf3 {[%clk 0:01:55.4]}
23... Qc4 {[%clk 0:01:58.4]} 24. b3 {[%clk 0:01:34.3]} 24... Qxh4 {[%clk
0:01:58.2]} 25. c4 {[%clk 0:01:34.7]} 25... dxc4 {[%clk 0:01:51.2]} 26. bxc4
{[%clk 0:01:35.2]} 26... Bxg3 {[%clk 0:01:41.7]} 27. Qxg3 {[%clk 0:01:33.3]}
27... Qxg3 {[%clk 0:01:40.9]} 28. fxg3 {[%clk 0:01:33.3]} 28... Rc8 {[%clk
0:01:39.4]} 29. Bb5 {[%clk 0:01:33.2]} 29... Kf8 {[%clk 0:01:34.6]} 30. a4
{[%clk 0:01:33.2]} 30... Ke7 {[%clk 0:01:34]} 31. Re5 {[%clk 0:01:27.8]} 31...
g6 {[%clk 0:01:29.5]} 32. Rd1 {[%clk 0:01:19.4]} 32... Rd8 {[%clk 0:01:27.2]}
33. Rc1 {[%clk 0:01:19]} 33... Rac8 {[%clk 0:01:18.9]} 34. Ba6 {[%clk
0:01:07.6]} 34... Ra8 {[%clk 0:01:12.3]} 35. Bb7 {[%clk 0:01:07.8]} 35... Ra7
{[%clk 0:01:07.7]} 36. Bf3 {[%clk 0:01:08.1]} 36... Rc8 {[%clk 0:01:05.9]} 37.
Rb5 {[%clk 0:01:06.8]} 37... Nd7 {[%clk 0:01:02.3]} 38. c5 {[%clk 0:01:07]}
38... Ne5 {[%clk 0:01:02.2]} 39. Bb7 {[%clk 0:01:03.8]} 39... Rc7 {[%clk
0:01:01.7]} 40. c6 {[%clk 0:01:03.9]} 40... Nd3 {[%clk 0:01:01.4]} 41. Rc4
{[%clk 0:00:53.9]} 41... Nb4 {[%clk 0:00:59.7]} 42. Kf2 {[%clk 0:00:51.5]} 42...
Kd6 {[%clk 0:00:57.3]} 43. Rd4+ {[%clk 0:00:50.3]} 43... Nd5 {[%clk 0:00:57.4]}
44. Kf3 {[%clk 0:00:44.8]} 44... h5 {[%clk 0:00:46]} 45. g4 {[%clk 0:00:44.3]}
45... hxg4+ {[%clk 0:00:45.9]} 46. Kxg4 {[%clk 0:00:45.2]} 46... Ke5 {[%clk
0:00:46.1]} 47. Rd2 {[%clk 0:00:42.2]} 47... Kd6 {[%clk 0:00:41.3]} 48. Kg5
{[%clk 0:00:39.1]} 48... Ke7 {[%clk 0:00:41.5]} 49. Rc2 {[%clk 0:00:34.4]} 49...
Nf6 {[%clk 0:00:36.3]} 50. Kf4 {[%clk 0:00:32.5]} 50... Ne8 {[%clk 0:00:35.2]}
51. Rcc5 {[%clk 0:00:28.8]} 51... Nd6 {[%clk 0:00:32.7]} 52. Rxa5 {[%clk
0:00:25.4]} 52... Rxa5 {[%clk 0:00:32.8]} 53. Rxa5 {[%clk 0:00:25.7]} 53... Nxb7
{[%clk 0:00:33.1]} 54. cxb7 {[%clk 0:00:22.4]} 54... Rxb7 {[%clk 0:00:32.8]} 55.
g4 {[%clk 0:00:23.1]} 55... Rb4+ {[%clk 0:00:32.2]} 56. Kg5 {[%clk 0:00:23.6]}
56... f6+ {[%clk 0:00:28.5]} 57. Kh4 {[%clk 0:00:20.2]} 57... f5 {[%clk
0:00:28]} 0-1

[Event "Early-Titled-Tuesday-Blitz-January-16-2024"]
[Site "Chess.com"]
[Date "2024.01.16"]
[Round "5"]
[White "aghasiyevkamal"]
[Black "Ducke13"]
[Result "1-0"]
[WhiteElo "2625"]
[BlackElo "2338"]
[TimeControl "180+1"]
[EndTime "8:59:04 PST"]
[Termination "aghasiyevkamal won on time"]

1. e4 {[%clk 0:03:00.9]} 1... c5 {[%clk 0:02:57.8]} 2. Nf3 {[%clk 0:03:00.4]}
2... d6 {[%clk 0:02:49.7]} 3. d4 {[%clk 0:02:59.2]} 3... cxd4 {[%clk 0:02:49.8]}
4. Nxd4 {[%clk 0:02:57]} 4... Nf6 {[%clk 0:02:50.1]} 5. Nc3 {[%clk 0:02:56]}
5... a6 {[%clk 0:02:50.4]} 6. Bg5 {[%clk 0:02:54]} 6... Nbd7 {[%clk 0:02:49.4]}
7. Qe2 {[%clk 0:02:50.1]} 7... g6 {[%clk 0:02:29.3]} 8. O-O-O {[%clk 0:02:48.6]}
8... Bg7 {[%clk 0:02:29.5]} 9. f4 {[%clk 0:02:48.3]} 9... O-O {[%clk 0:02:28.3]}
10. e5 {[%clk 0:02:44.1]} 10... dxe5 {[%clk 0:02:28]} 11. fxe5 {[%clk 0:02:44]}
11... Qa5 {[%clk 0:02:28.9]} 12. Re1 {[%clk 0:02:18.1]} 12... Nd5 {[%clk
0:01:50.7]} 13. Nxd5 {[%clk 0:01:15.8]} 13... Qxd5 {[%clk 0:01:51.6]} 14. Nb3
{[%clk 0:01:13.6]} 14... f6 {[%clk 0:01:34.8]} 15. Bf4 {[%clk 0:01:05]} 15...
Nxe5 {[%clk 0:01:30.3]} 16. Bxe5 {[%clk 0:01:03.6]} 16... fxe5 {[%clk
0:01:27.8]} 17. Qe3 {[%clk 0:00:58.8]} 17... Bf5 {[%clk 0:01:18.7]} 18. Rd1
{[%clk 0:00:53.7]} 18... Qc6 {[%clk 0:01:15.4]} 19. Qc5 {[%clk 0:00:50.1]} 19...
Rac8 {[%clk 0:01:10.9]} 20. Qxc6 {[%clk 0:00:42.5]} 20... Rxc6 {[%clk
0:01:11.8]} 21. Bd3 {[%clk 0:00:39.3]} 21... e4 {[%clk 0:01:11.7]} 22. Be2
{[%clk 0:00:38.4]} 22... Rfc8 {[%clk 0:01:09.7]} 23. c3 {[%clk 0:00:37.1]} 23...
e3 {[%clk 0:00:52.9]} 24. Nd4 {[%clk 0:00:32.5]} 24... Rxc3+ {[%clk 0:00:27.7]}
25. bxc3 {[%clk 0:00:30.4]} 25... Rxc3+ {[%clk 0:00:28.2]} 26. Kb2 {[%clk
0:00:30.5]} 26... Rc2+ {[%clk 0:00:20.5]} 27. Kb3 {[%clk 0:00:30.1]} 27... Bxd4
{[%clk 0:00:12.4]} 28. Bc4+ {[%clk 0:00:28.2]} 28... Rxc4 {[%clk 0:00:05.4]} 29.
Kxc4 {[%clk 0:00:27.8]} 29... e5 {[%clk 0:00:05.3]} 30. Kd5 {[%clk 0:00:22.6]}
30... b5 {[%clk 0:00:04.3]} 31. Rxd4 {[%clk 0:00:22.5]} 31... exd4 {[%clk
0:00:04.2]} 32. Kxd4 {[%clk 0:00:23.1]} 32... e2 {[%clk 0:00:04.7]} 33. Re1
{[%clk 0:00:21.3]} 33... Bg4 {[%clk 0:00:04]} 34. h3 {[%clk 0:00:21.5]} 34...
Be6 {[%clk 0:00:04.5]} 35. Rxe2 {[%clk 0:00:20.9]} 35... Bc4 {[%clk 0:00:05.2]}
36. Rf2 {[%clk 0:00:18.4]} 36... Kg7 {[%clk 0:00:04.9]} 37. a4 {[%clk
0:00:17.2]} 37... h5 {[%clk 0:00:03.8]} 38. h4 {[%clk 0:00:16.6]} 38... Bb3
{[%clk 0:00:02.5]} 39. a5 {[%clk 0:00:16]} 39... b4 {[%clk 0:00:02]} 40. Kc5
{[%clk 0:00:16.1]} 40... Ba4 {[%clk 0:00:02]} 41. Kxb4 {[%clk 0:00:16.3]} 41...
Bb5 {[%clk 0:00:02.7]} 42. Kc5 {[%clk 0:00:16.6]} 42... Bd3 {[%clk 0:00:02.8]}
43. Kd6 {[%clk 0:00:15.7]} 43... Bb5 {[%clk 0:00:02.5]} 44. Ke5 {[%clk
0:00:15.7]} 44... Bd3 {[%clk 0:00:02.6]} 45. Rf3 {[%clk 0:00:15.6]} 45... Be2
{[%clk 0:00:01.9]} 46. Rf4 {[%clk 0:00:15.2]} 46... Bb5 {[%clk 0:00:01.6]} 47.
g3 {[%clk 0:00:15.6]} 47... Bd3 {[%clk 0:00:01.6]} 48. Ke6 {[%clk 0:00:15.8]}
48... Bb5 {[%clk 0:00:01.8]} 49. Rf7+ {[%clk 0:00:15.4]} 49... Kh6 {[%clk
0:00:01.8]} 50. Kf6 {[%clk 0:00:15.4]} 1-0

[Event "Early-Titled-Tuesday-Blitz-January-16-2024"]
[Site "Chess.com"]
[Date "2024.01.16"]
[Round "5"]
[White "Firouzja2003"]
[Black "SantoBlue"]
[Result "1-0"]
[WhiteElo "3167"]
[BlackElo "2940"]
[TimeControl "180+1"]
[EndTime "8:59:07 PST"]
[Termination "Firouzja2003 won by resignation"]

1. e4 {[%clk 0:03:00.9]} 1... e5 {[%clk 0:02:55.6]} 2. Nf3 {[%clk 0:03:01.2]}
2... Nc6 {[%clk 0:02:54.5]} 3. Bb5 {[%clk 0:03:01.7]} 3... a6 {[%clk 0:02:54]}
4. Ba4 {[%clk 0:03:02.1]} 4... Nf6 {[%clk 0:02:54.4]} 5. O-O {[%clk 0:03:02.5]}
5... Be7 {[%clk 0:02:52.9]} 6. Re1 {[%clk 0:03:02.3]} 6... b5 {[%clk 0:02:53.2]}
7. Bb3 {[%clk 0:03:02.9]} 7... O-O {[%clk 0:02:50.5]} 8. d3 {[%clk 0:03:01.6]}
8... d6 {[%clk 0:02:48.9]} 9. Bd2 {[%clk 0:03:02]} 9... Be6 {[%clk 0:02:38.6]}
10. Nc3 {[%clk 0:02:38.1]} 10... h6 {[%clk 0:02:26.6]} 11. Nd5 {[%clk
0:02:36.7]} 11... Nd7 {[%clk 0:02:18.6]} 12. a4 {[%clk 0:02:25.4]} 12... Rb8
{[%clk 0:01:55.2]} 13. axb5 {[%clk 0:02:25.4]} 13... axb5 {[%clk 0:01:55.9]} 14.
Ra6 {[%clk 0:02:23.5]} 14... Nd4 {[%clk 0:01:53.4]} 15. Nxd4 {[%clk 0:02:21.9]}
15... exd4 {[%clk 0:01:53.8]} 16. Ba5 {[%clk 0:02:18.2]} 16... Bxd5 {[%clk
0:01:41.3]} 17. Bxd5 {[%clk 0:02:15.8]} 17... Qc8 {[%clk 0:01:32.8]} 18. Ra7
{[%clk 0:01:54.8]} 18... Bd8 {[%clk 0:01:22.3]} 19. Qg4 {[%clk 0:01:43.9]} 19...
c6 {[%clk 0:01:05.9]} 20. Bxd8 {[%clk 0:01:19.8]} 20... Rxd8 {[%clk 0:01:02.3]}
21. Bb3 {[%clk 0:01:07.3]} 21... Rb7 {[%clk 0:00:59.7]} 22. Rea1 {[%clk
0:01:07.7]} 22... Nc5 {[%clk 0:00:53.9]} 23. Qxc8 {[%clk 0:00:57.2]} 23... Rxc8
{[%clk 0:00:54.8]} 24. Rxb7 {[%clk 0:00:56.7]} 24... Nxb7 {[%clk 0:00:55.7]} 25.
Ra7 {[%clk 0:00:56.9]} 25... Rb8 {[%clk 0:00:54]} 26. f4 {[%clk 0:00:48]} 26...
Kf8 {[%clk 0:00:53.4]} 27. Kf2 {[%clk 0:00:43.6]} 27... Ke7 {[%clk 0:00:46.8]}
28. Kf3 {[%clk 0:00:43.6]} 28... g6 {[%clk 0:00:42]} 29. h4 {[%clk 0:00:36.4]}
29... h5 {[%clk 0:00:41.3]} 30. g4 {[%clk 0:00:36.3]} 30... hxg4+ {[%clk
0:00:41.1]} 31. Kxg4 {[%clk 0:00:37.2]} 31... Kf6 {[%clk 0:00:41]} 32. h5 {[%clk
0:00:34.1]} 32... gxh5+ {[%clk 0:00:36.2]} 33. Kxh5 {[%clk 0:00:35]} 33... Rh8+
{[%clk 0:00:13]} 34. Kg4 {[%clk 0:00:35.2]} 34... Rg8+ {[%clk 0:00:13.7]} 35.
Kf3 {[%clk 0:00:35.5]} 35... Rb8 {[%clk 0:00:14.4]} 36. Ba2 {[%clk 0:00:36]}
36... Ke7 {[%clk 0:00:14.1]} 37. b4 {[%clk 0:00:36.4]} 37... Kf6 {[%clk
0:00:13.9]} 38. Bb3 {[%clk 0:00:36.5]} 38... Ke7 {[%clk 0:00:14.5]} 39. e5
{[%clk 0:00:27.5]} 39... dxe5 {[%clk 0:00:13.9]} 40. fxe5 {[%clk 0:00:28.1]}
40... f6 {[%clk 0:00:14.5]} 41. e6 {[%clk 0:00:20.6]} 41... Kd6 {[%clk
0:00:12.5]} 42. Ke4 {[%clk 0:00:19.7]} 42... c5 {[%clk 0:00:12.8]} 43. Ra6+
{[%clk 0:00:19]} 43... Ke7 {[%clk 0:00:13.5]} 44. Ra7 {[%clk 0:00:11.1]} 44...
c4 {[%clk 0:00:04.3]} 45. dxc4 {[%clk 0:00:10.7]} 45... Kxe6 {[%clk 0:00:05]}
46. c5+ {[%clk 0:00:09.5]} 46... Kd7 {[%clk 0:00:05.7]} 47. Bd5 {[%clk
0:00:09.4]} 47... Kc8 {[%clk 0:00:05.6]} 48. Rxb7 {[%clk 0:00:09.2]} 48... Rxb7
{[%clk 0:00:06.5]} 49. Bxb7+ {[%clk 0:00:10]} 49... Kxb7 {[%clk 0:00:06.7]} 50.
Kf5 {[%clk 0:00:10]} 50... Kc6 {[%clk 0:00:06.8]} 51. Kxf6 {[%clk 0:00:10.7]}
51... Kd5 {[%clk 0:00:07.4]} 52. Ke7 {[%clk 0:00:10.6]} 52... Kc4 {[%clk
0:00:06.6]} 53. c6 {[%clk 0:00:11.2]} 1-0